fUSD/lending_fUSD_20250204
["ID","MTS","AMOUNT","RATE_DAILY","PERIOD"]
[351661307,1738695041835,-500.0,0.00011635,2]
[351661308,1738695041845,-500.0,0.00011635,2]
[351661309,1738695041854,-500.0,0.00011635,2]
[351661310,1738695041864,-500.0,0.00011635,2]
[351661311,1738695041873,-500.0,0.00011635,2]
[351661312,1738695041883,-500.0,0.00011635,2]
[351661313,1738695041893,-500.0,0.00011635,2]
[351661314,1738695041904,-500.0,0.00011635,2]
[351661315,1738695041914,-500.0,0.00011635,2]
[351661316,1738695041923,-500.0,0.00011635,2]
[351661317,1738695041933,-500.0,0.00011635,2]
[351661318,1738695041943,-500.0,0.00011635,2]
[351661319,1738695041952,-500.0,0.00011635,2]
[351661320,1738695041962,-500.0,0.00011635,2]
[351661321,1738695041972,-500.0,0.00011635,2]
[351661322,1738695041985,-500.0,0.00011635,2]
[351661323,1738695041995,-500.0,0.00011635,2]
[351661324,1738695042005,-500.0,0.00011635,2]
[351661325,1738695042015,-500.0,0.00011635,2]
[351661326,1738695042026,-500.0,0.00011635,2]
[351661327,1738695042037,-500.0,0.00011635,2]
[351661328,1738695042046,-500.0,0.00011635,2]
[351661329,1738695042056,-500.0,0.00011635,2]
[351661330,1738695042066,-500.0,0.00011635,2]
[351661331,1738695042076,-500.0,0.00011635,2]
[351661332,1738695042085,-500.0,0.00011635,2]
[351661333,1738695042095,-500.0,0.00011635,2]
[351661334,1738695042104,-500.0,0.00011635,2]
[351661335,1738695042113,-500.0,0.00011635,2]
[351661336,1738695042123,-500.0,0.00011635,2]
[351661337,1738695042132,-500.0,0.00011635,2]
[351661338,1738695042141,-500.0,0.00011635,2]
[351661339,1738695042151,-500.0,0.00011635,2]
[351661340,1738695042160,-500.0,0.00011635,2]
[351661341,1738695042170,-500.0,0.00011635,2]
[351661342,1738695042179,-500.0,0.00011635,2]
[351661343,1738695042189,-500.0,0.00011635,2]
[351661344,1738695042198,-997.0,0.00011635,2]
[351661345,1738695042208,-4000.0,0.00011635,2]
[351661346,1738695042217,-579.41319293,0.00011648,2]
[351661347,1738695042226,-10982.32364256,0.00011649,2]
[351661348,1738695042236,-2044.88505878,0.00011656,2]
[351661349,1738695042245,-500.0,0.00011672,2]
[351661350,1738695042255,-500.0,0.00011672,2]
[351661351,1738695042265,-543.4,0.00011672,2]
[351661352,1738695042276,-500.0,0.00011672,2]
[351661353,1738695042286,-500.0,0.00011672,2]
[351661354,1738695042295,-500.0,0.00011672,2]
[351661355,1738695042305,-500.0,0.00011672,2]
[351661356,1738695042316,-500.0,0.00011672,2]
[351661357,1738695042325,-500.0,0.00011672,2]
[351661358,1738695042335,-500.0,0.00011672,2]
[351661359,1738695042345,-500.0,0.00011672,2]
[351661360,1738695042354,-1139.23,0.00011672,2]
[351661361,1738695042364,-500.0,0.00011672,2]
[351661362,1738695042374,-500.0,0.00011672,2]
[351661363,1738695042384,-500.0,0.00011672,2]
[351661364,1738695042394,-500.0,0.00011672,2]
[351661365,1738695042413,-365.20252103,0.00011672,2]
[351661366,1738695042422,-500.0,0.00011672,2]
[351661367,1738695042431,-2044.88505878,0.00011697,2]
[351661368,1738695042441,-500.0,0.00011709,2]
[351661369,1738695042450,-252.83,0.00011709,2]
[351661370,1738695042460,-500.0,0.00011709,2]
[351661371,1738695042470,-500.0,0.00011709,2]
[351661372,1738695042479,-500.0,0.00011709,2]
[351661373,1738695042489,-500.0,0.00011709,2]
[351661374,1738695042499,-500.0,0.00011709,2]
[351661376,1738695042509,-552.38,0.00011709,2]
[351661379,1738695042519,-500.0,0.00011709,2]
[351661382,1738695042529,-475.36,0.00011709,2]
[351661385,1738695042538,-500.0,0.00011709,2]
[351661387,1738695042548,-393.18,0.00011709,2]
[351661389,1738695042557,-500.0,0.00011709,2]
[351661391,1738695042566,-500.0,0.00011709,2]
[351661393,1738695042576,-500.0,0.00011709,2]
[351661394,1738695042587,-152.63554011,0.00011709,2]
[351661396,1738695042791,-347.36445989,0.00011709,2]
[351661397,1738695042801,-150.65037811,0.0001171,2]
[351661398,1738695042812,-164.38392768,0.0001171,2]
[351661399,1738695042822,-500.0,0.0001171,2]
[351661400,1738695042831,-526.33,0.0001171,2]
[351661401,1738695042840,-648.225136,0.0001171,2]
[351661402,1738695042851,-500.0,0.0001171,2]
[351661403,1738695042860,-612.66,0.0001171,2]
[351661404,1738695042869,-500.0,0.0001171,2]
[351661405,1738695042879,-811.9,0.0001171,2]
[351661406,1738695042888,-500.0,0.0001171,2]
[351661407,1738695042903,-500.0,0.0001171,2]
[351661408,1738695042912,-500.0,0.0001171,2]
[351661409,1738695042921,-500.0,0.0001171,2]
[351661410,1738695042929,-500.0,0.0001171,2]
[351661411,1738695042938,-500.0,0.0001171,2]
[351661413,1738695042947,-174.31,0.0001171,2]
[351661414,1738695042956,-500.0,0.0001171,2]
[351661416,1738695042965,-500.0,0.0001171,2]
[351661418,1738695042976,-500.0,0.0001171,2]
[351661420,1738695042986,-500.0,0.0001171,2]
[351661422,1738695042995,-10982.32364256,0.00011711,2]
[351661423,1738695043005,-150.0,0.00011715,2]
[351661424,1738695043014,-150.0,0.00011715,2]
[351661425,1738695043024,-150.0,0.00011722,2]
[351661426,1738695043033,-150.0,0.00011725,2]
[351661427,1738695043042,-150.0,0.00011727,2]
[351661428,1738695043052,-150.0,0.00011736,2]
[351661429,1738695043061,-150.0,0.00011737,2]
[351661430,1738695043071,-2044.88505878,0.00011737,2]
[351661431,1738695043081,-150.0,0.00011747,2]
[351661432,1738695043090,-200.0,0.00011751,2]
[351661433,1738695043099,-150.0,0.00011754,2]
[351661434,1738695043108,-150.0,0.00011756,2]
[351661435,1738695043117,-150.0,0.00011759,2]
[351661436,1738695043127,-1149.46749178,0.0001176,2]
[351661437,1738695043137,-1058.91755646,0.0001176,2]
[351661438,1738695043147,-1050.37037573,0.0001176,2]
[351661439,1738695043156,-150.0,0.00011764,2]
[351661440,1738695043165,-150.0,0.00011765,2]
[351661441,1738695043174,-150.0,0.00011765,2]
[351661442,1738695043184,-150.0,0.00011772,2]
[351661443,1738695043193,-500.0,0.00011773,2]
[351661444,1738695043203,-500.0,0.00011773,2]
[351661445,1738695043212,-354.49302809,0.00011773,2]
[351661446,1738695043222,-10982.32364256,0.00011774,2]
[351661447,1738695043231,-2044.88505878,0.00011778,2]
[351661448,1738695043240,-150.0,0.00011778,2]
[351661449,1738695043249,-1222.9,0.0001178,2]
[351661450,1738695043259,-222.85052944,0.00011781,2]
[351661451,1738695043269,-152.0,0.00011782,3]
[351661452,1738695043278,-150.0,0.00011782,2]
[351661453,1738695043287,-150.0,0.00011783,2]
[351661454,1738695043296,-150.0,0.00011784,2]
[351661455,1738695043306,-150.0,0.00011787,2]
[351661456,1738695043316,-150.0,0.00011788,2]
[351661457,1738695043326,-150.0,0.00011789,2]
[351661458,1738695043335,-150.0,0.0001179,2]
[351661459,1738695043345,-150.0,0.00011791,2]
[351661460,1738695043355,-150.0,0.00011791,2]
[351661461,1738695043365,-150.0,0.00011793,2]
[351661462,1738695043374,-150.0,0.00011794,2]
[351661463,1738695043383,-150.0,0.00011796,2]
[351661464,1738695043393,-150.0,0.00011796,2]
[351661465,1738695043403,-93.58213313,0.00011797,2]
[351661466,1738695043415,-56.41786687,0.00011797,2]
[351661467,1738695043424,-31053.50724745,0.00011797,3]
[351661468,1738695043434,-150.0,0.00011798,2]
[351661469,1738695043443,-150.0,0.00011798,2]
[351661470,1738695043453,-20680.56631438,0.00011799,2]
[351661471,1738695043464,-97507.4914287,0.00011799,2]
[351661472,1738695043475,-3015.00000004,0.00011799,2]
[351661473,1738695043750,-334.32321869,0.00011535,2]
[351661474,1738695043761,-500.0,0.00011635,2]
[351661475,1738695043772,-20392.83507787,0.00011799,2]
[351661476,1738695043784,-21262.4379248,0.00011799,2]
[351661477,1738695043795,-363.33137269,0.00011799,2]
[351661478,1738695043807,-282.82,0.00011799,2]
[351661479,1738695043819,-6542.76382392,0.00011799,2]
[351661480,1738695043833,-331.013,0.00011799,2]
[351661481,1738695043849,-310.231383,0.00011799,2]
[351661482,1738695043867,-500.0,0.00011635,2]
[351661483,1738695043877,-45.65939646,0.00011799,2]
[351661484,1738695043888,-388.86363569,0.00011799,2]
[351661485,1738695043899,-476.03411798,0.00011799,2]
[351661486,1738695044073,-500.0,0.00011635,2]
[351661487,1738695044083,-500.0,0.00011635,2]
[351661488,1738695044093,-500.0,0.00011635,2]
[351661489,1738695044103,-500.0,0.00011635,2]
[351661490,1738695044113,-500.0,0.00011635,2]
[351661491,1738695044122,-929.0,0.00011635,2]
[351661492,1738695044131,-28457.457145,0.00011799,2]
[351661493,1738695044143,-409043.53216538,0.00011799,2]
[351661494,1738695044153,-100238.32172207,0.000118,2]
[351661495,1738695044163,-150.0,0.00011801,2]
[351661496,1738695044172,-150.0,0.00011802,2]
[351661497,1738695044182,-150.0,0.00011803,2]
[351661498,1738695044191,-150.0,0.00011808,2]
[351661499,1738695044201,-500.0,0.00011809,2]
[351661500,1738695044210,-503.76324463,0.00011809,2]
[351661501,1738695044220,-150.0,0.00011809,2]
[351661502,1738695044229,-500.0,0.00011809,2]
[351661503,1738695044239,-500.0,0.00011809,2]
[351661504,1738695044248,-500.0,0.00011809,2]
[351661505,1738695044257,-500.0,0.00011809,2]
[351661506,1738695044266,-500.0,0.00011809,2]
[351661507,1738695044276,-500.0,0.00011809,2]
[351661508,1738695044286,-500.0,0.00011809,2]
[351661509,1738695044295,-500.0,0.00011809,2]
[351661510,1738695044305,-1139.23,0.00011809,2]
[351661511,1738695044315,-500.0,0.00011809,2]
[351661512,1738695044324,-477.79375154,0.00011809,2]
[351661513,1738695044334,-500.0,0.00011809,2]
[351661514,1738695044344,-500.0,0.00011809,2]
[351661515,1738695044354,-500.0,0.00011809,2]
[351661516,1738695044364,-2044.88505878,0.00011818,2]
[351661517,1738695044374,-150.0,0.00011825,2]
[351661518,1738695044384,-150.0,0.00011829,2]
[351661519,1738695044393,-150.0,0.0001183,2]
[351661520,1738695044403,-150.0,0.00011833,2]
[351661521,1738695044412,-150.0,0.00011835,2]
[351661522,1738695044422,-10982.32364256,0.00011836,2]
[351661523,1738695044432,-150.0,0.0001184,2]
[351661524,1738695044442,-150.0,0.00011842,2]
[351661525,1738695044451,-500.0,0.00011846,2]
[351661526,1738695044461,-500.0,0.00011846,2]
[351661527,1738695044471,-500.0,0.00011846,2]
[351661528,1738695044480,-500.0,0.00011846,2]
[351661529,1738695044490,-500.0,0.00011846,2]
[351661530,1738695044499,-500.0,0.00011846,2]
[351661531,1738695044509,-500.0,0.00011846,2]
[351661532,1738695044519,-500.0,0.00011846,2]
[351661533,1738695044529,-500.0,0.00011846,2]
[351661534,1738695044539,-500.0,0.00011846,2]
[351661535,1738695044549,-500.0,0.00011846,2]
[351661536,1738695044558,-500.0,0.00011846,2]
[351661537,1738695044568,-500.0,0.00011847,2]
[351661538,1738695044577,-526.33,0.00011847,2]
[351661539,1738695044587,-648.225136,0.00011847,2]
[351661540,1738695044597,-500.0,0.00011847,2]
[351661541,1738695044606,-612.66,0.00011847,2]
[351661542,1738695044616,-500.0,0.00011847,2]
[351661543,1738695044625,-811.9,0.00011847,2]
[351661544,1738695044635,-500.0,0.00011847,2]
[351661545,1738695044644,-500.0,0.00011847,2]
[351661546,1738695044654,-500.0,0.00011847,2]
[351661547,1738695044663,-158.25408241,0.00011847,2]
[351661548,1738695044673,-290.15377567,0.00011847,2]
[351661549,1738695044683,-500.0,0.00011847,2]
[351661550,1738695044692,-500.0,0.00011847,2]
[351661551,1738695044702,-500.0,0.00011847,2]
[351661552,1738695044711,-500.0,0.00011847,2]
[351661553,1738695044720,-500.0,0.00011847,2]
[351661554,1738695044730,-150.0,0.00011851,2]
[351661555,1738695044739,-150.0,0.00011852,2]
[351661556,1738695044748,-150.0,0.00011855,2]
[351661557,1738695044758,-150.0,0.00011857,2]
[351661558,1738695044767,-2044.88505878,0.00011859,2]
[351661559,1738695044778,-150.0,0.00011859,2]
[351661560,1738695044787,-150.0,0.0001186,2]
[351661561,1738695044796,-150.0,0.00011866,2]
[351661562,1738695044806,-200.0,0.00011869,2]
[351661563,1738695044816,-150.0,0.00011869,2]
[351661564,1738695044826,-150.0,0.00011869,2]
[351661565,1738695044835,-1000.0,0.0001187,4]
[351661566,1738695044844,-150.0,0.0001187,2]
[351661567,1738695044854,-150.0,0.00011872,2]
[351661568,1738695044863,-150.0,0.00011874,2]
[351661569,1738695044873,-479.69,0.0001188,2]
[351661570,1738695044882,-150.0,0.00011881,2]
[351661571,1738695044891,-150.0,0.00011886,2]
[351661572,1738695044905,-150.0,0.00011892,2]
[351661573,1738695044914,-150.0,0.00011896,2]
[351661574,1738695044924,-537.96321725,0.00011899,2]
[351661575,1738695044934,-2044.88505878,0.00011899,2]
[351661576,1738695044943,-10982.32364256,0.00011899,2]
[351661577,1738695044952,-523.19142598,0.00011899,2]
[351661578,1738695044963,-177.79268241,0.00011899,2]
[351661579,1738695044973,-1080496.37914347,0.000119,2]
[351661580,1738695044984,-33414.4969137,0.000119,2]
[351661581,1738695044994,-3403.65,0.000119,2]
[351661582,1738695045004,-1000.0,0.000119,2]
[351661583,1738695045013,-1000.0,0.000119,2]
[351661584,1738695045022,-1000.0,0.000119,2]
[351661585,1738695045031,-1000.0,0.000119,2]
[351661586,1738695045041,-1000.0,0.000119,2]
[351661587,1738695045051,-1000.0,0.000119,2]
[351661588,1738695045060,-1000.0,0.000119,2]
[351661589,1738695045070,-1000.0,0.000119,2]
[351661590,1738695045079,-1000.0,0.000119,2]
[351661591,1738695045088,-1000.0,0.000119,2]
[351661592,1738695045097,-150.0,0.000119,2]
[351661593,1738695045106,-1000.0,0.000119,2]
[351661594,1738695045116,-1000.0,0.000119,2]
[351661595,1738695045125,-1000.0,0.000119,2]
[351661596,1738695045135,-1000.0,0.000119,2]
[351661597,1738695045144,-1000.0,0.000119,2]
[351661598,1738695045154,-1000.0,0.000119,2]
[351661599,1738695045163,-1000.0,0.000119,2]
[351661600,1738695045172,-1000.0,0.000119,2]
[351661601,1738695045182,-1000.0,0.000119,2]
[351661602,1738695045191,-1000.0,0.000119,2]
[351661603,1738695045200,-3779.71629562,0.000119,2]
[351661604,1738695045213,-150.0,0.00011908,2]
[351661605,1738695045223,-150.0,0.00011913,2]
[351661606,1738695045232,-150.0,0.0001192,2]
[351661607,1738695045242,-150.0,0.00011921,2]
[351661608,1738695045251,-150.0,0.00011928,2]
[351661609,1738695045261,-150.0,0.00011932,2]
[351661610,1738695045271,-150.0,0.00011933,2]
[351661611,1738695045282,-150.0,0.00011934,2]
[351661612,1738695045291,-150.0,0.00011936,2]
[351661613,1738695045301,-150.0,0.00011938,2]
[351661614,1738695045310,-150.0,0.00011944,2]
[351661615,1738695045320,-150.0,0.00011944,2]
[351661616,1738695045330,-500.0,0.00011946,2]
[351661617,1738695045340,-150.0,0.00011946,2]
[351661618,1738695045349,-500.0,0.00011946,2]
[351661619,1738695045359,-500.0,0.00011946,2]
[351661620,1738695045368,-500.0,0.00011946,2]
[351661621,1738695045378,-500.0,0.00011946,2]
[351661622,1738695045388,-500.0,0.00011946,2]
[351661623,1738695045398,-500.0,0.00011946,2]
[351661624,1738695045407,-500.0,0.00011946,2]
[351661625,1738695045417,-500.0,0.00011946,2]
[351661626,1738695045428,-1139.23,0.00011946,2]
[351661627,1738695045439,-500.0,0.00011946,2]
[351661628,1738695045449,-500.0,0.00011946,2]
[351661629,1738695045460,-500.0,0.00011946,2]
[351661630,1738695045470,-500.0,0.00011946,2]
[351661631,1738695045479,-150.0,0.00011948,2]
[351661632,1738695045489,-150.0,0.00011952,2]
[351661633,1738695045498,-150.0,0.00011953,2]
[351661634,1738695045510,-150.0,0.00011955,2]
[351661635,1738695045520,-150.0,0.00011959,2]
[351661636,1738695045533,-150.0,0.0001196,2]
[351661638,1738695045543,-150.0,0.00011963,2]
[351661639,1738695045552,-150.0,0.00011963,2]
[351661640,1738695045563,-150.0,0.00011965,2]
[351661641,1738695045572,-150.0,0.00011969,2]
[351661642,1738695045582,-150.0,0.00011971,2]
[351661643,1738695045592,-2100.0,0.00011972,2]
[351661644,1738695045602,-1312.0,0.00011973,2]
[351661645,1738695045611,-803.0,0.00011973,2]
[351661646,1738695045621,-150.0,0.00011973,2]
[351661647,1738695045630,-150.0,0.00011978,2]
[351661648,1738695045639,-150.0,0.00011979,2]
[351661649,1738695045649,-150.0,0.0001198,2]
[351661650,1738695045658,-150.0,0.00011983,2]
[351661651,1738695045667,-150.0,0.00011983,2]
[351661652,1738695045677,-500.0,0.00011983,2]
[351661653,1738695045686,-354.07566213,0.00011983,2]
[351661654,1738695045695,-260.82,0.00011983,2]
[351661655,1738695045703,-500.0,0.00011983,2]
[351661656,1738695045712,-500.0,0.00011983,2]
[351661657,1738695045722,-178.57106509,0.00011983,2]
[351661658,1738695045731,-500.0,0.00011983,2]
[351661659,1738695045740,-500.0,0.00011983,2]
[351661660,1738695045748,-500.0,0.00011983,2]
[351661661,1738695045758,-500.0,0.00011983,2]
[351661662,1738695045767,-636.97087169,0.00011983,2]
[351661663,1738695045779,-500.0,0.00011983,2]
[351661664,1738695045788,-500.0,0.00011984,2]
[351661665,1738695045798,-526.33,0.00011984,2]
[351661666,1738695045807,-500.0,0.00011984,2]
[351661667,1738695045816,-612.66,0.00011984,2]
[351661668,1738695045826,-500.0,0.00011984,2]
[351661669,1738695045836,-811.9,0.00011984,2]
[351661670,1738695045847,-500.0,0.00011984,2]
[351661671,1738695045856,-500.0,0.00011984,2]
[351661672,1738695045865,-500.0,0.00011984,2]
[351661673,1738695045875,-500.0,0.00011984,2]
[351661674,1738695045884,-500.0,0.00011984,2]
[351661675,1738695045894,-500.0,0.00011984,2]
[351661676,1738695045904,-500.0,0.00011984,2]
[351661677,1738695045916,-500.0,0.00011984,2]
[351661678,1738695045925,-200.0,0.00011988,2]
[351661679,1738695045934,-150.0,0.00011988,2]
[351661680,1738695045944,-2217.9640171,0.00011989,2]
[351661681,1738695045954,-7628.6432327,0.00011989,2]
[351661682,1738695045963,-5100.0,0.0001199,5]
[351661683,1738695045973,-5100.0,0.0001199,6]
[351661684,1738695045982,-5100.0,0.0001199,7]
[351661685,1738695045995,-5100.0,0.0001199,3]
[351661687,1738695046004,-5100.0,0.0001199,4]
[351661689,1738695046014,-700.0,0.0001199,2]
[351661691,1738695046024,-5100.0,0.0001199,2]
[351661693,1738695046033,-6306.2528555,0.0001199,2]
[351661695,1738695046042,-1833.4901095,0.00011991,2]
[351661696,1738695046051,-1449.0162019,0.00011992,2]
[351661698,1738695046060,-1064.5422943,0.00011992,2]
[351661700,1738695046070,-680.0683867,0.00011992,2]
[351661703,1738695046079,-295.5944791,0.00011992,2]
[351661704,1738695046088,-4983.8624782,0.00011992,2]
[351661706,1738695046098,-3661.472101,0.00011992,2]
[351661708,1738695046107,-2339.0817237,0.00011992,2]
[351661710,1738695046116,-1016.6913465,0.00011992,2]
[351661712,1738695046125,-268947.42449868,0.00011995,2]
[351661777,1738695046756,-150.0,0.0001171,2]
[351661779,1738695046765,-150.0,0.00011711,2]
[351661781,1738695046775,-150.0,0.00011722,2]
[351661783,1738695046785,-150.0,0.00011727,2]
[351661785,1738695046794,-150.0,0.00011731,2]
[351661787,1738695046803,-150.0,0.00011741,2]
[351661788,1738695046812,-150.0,0.00011745,2]
[351661789,1738695046822,-150.0,0.00011746,2]
[351661790,1738695046832,-150.0,0.00011749,2]
[351661791,1738695046841,-123.47584844,0.00011749,2]
[351661792,1738695046853,-26.52415156,0.00011749,2]
[351661793,1738695046863,-150.0,0.00011754,2]
[351661794,1738695046873,-150.0,0.00011755,2]
[351661795,1738695046882,-71.46348644,0.00011758,2]
[351661796,1738695046894,-78.53651356,0.00011758,2]
[351661797,1738695046908,-150.0,0.0001176,2]
[351661798,1738695046917,-150.0,0.00011766,2]
[351661799,1738695046926,-150.0,0.0001177,2]
[351661800,1738695046936,-150.0,0.00011775,2]
[351661801,1738695046947,-150.0,0.00011778,2]
[351661802,1738695046956,-150.0,0.00011778,2]
[351661803,1738695046966,-150.0,0.00011779,2]
[351661804,1738695046976,-150.0,0.00011791,2]
[351661805,1738695046986,-150.0,0.00011795,2]
[351661806,1738695046996,-150.0,0.00011796,2]
[351661807,1738695047006,-150.0,0.00011796,2]
[351661808,1738695047015,-150.0,0.000118,2]
[351661809,1738695047026,-150.0,0.00011802,2]
[351661810,1738695047036,-150.0,0.00011805,2]
[351661811,1738695047045,-150.0,0.00011805,2]
[351661812,1738695047055,-150.0,0.00011806,2]
[351661813,1738695047064,-150.0,0.00011806,2]
[351661814,1738695047074,-150.0,0.00011807,2]
[351661815,1738695047083,-47.90698644,0.00011812,2]
[351661816,1738695047109,-150.0,0.00011749,2]
[351661817,1738695047119,-102.09301356,0.00011812,2]
[351661818,1738695047128,-150.0,0.00011813,2]
[351661819,1738695047139,-150.0,0.00011819,2]
[351661820,1738695047149,-98.50449385,0.00011819,2]
[351661821,1738695047175,-51.49550615,0.00011819,2]
[351661822,1738695047185,-150.0,0.0001182,2]
[351661823,1738695047195,-150.0,0.00011821,2]
[351661824,1738695047205,-150.0,0.00011826,2]
[351661825,1738695047214,-150.0,0.0001183,2]
[351661826,1738695047224,-150.0,0.00011832,2]
[351661827,1738695047235,-150.0,0.00011839,2]
[351661828,1738695047245,-150.0,0.00011841,2]
[351661829,1738695047256,-150.0,0.00011842,2]
[351661830,1738695047266,-150.0,0.00011844,2]
[351661831,1738695047278,-150.0,0.00011846,2]
[351661832,1738695047291,-150.0,0.00011849,2]
[351661833,1738695047301,-150.0,0.0001185,2]
[351661834,1738695047312,-150.0,0.00011859,2]
[351661835,1738695047322,-150.0,0.00011859,2]
[351661836,1738695047332,-150.0,0.00011864,2]
[351661837,1738695047342,-150.0,0.00011875,2]
[351661838,1738695047353,-150.0,0.00011876,2]
[351661839,1738695047362,-150.0,0.00011881,2]
[351661840,1738695047373,-150.0,0.00011888,2]
[351661841,1738695047383,-150.0,0.00011889,2]
[351661842,1738695047393,-105.53619341,0.00011891,2]
[351661844,1738695752664,205.3102702,0.000189,120]
[351661846,1738695994652,10035.4462513,0.00012,29]
[351661863,1738696231826,-807.55,8.846e-05,2]
[351661864,1738696231835,-1000.0,9.863e-05,2]
[351661865,1738696231845,-166.66666668,0.00010036,2]
[351661866,1738696231855,-360.26427585,0.00010136,2]
[351661867,1738696231867,-639.73572415,0.00010136,2]
[351661868,1738696231877,-919.69,0.00010137,2]
[351661869,1738696231887,-412.9232916,0.0001041,2]
[351661870,1738696231906,-284.24426,0.0001041,2]
[351661871,1738696231918,-302.8324484,0.0001041,2]
[351661872,1738696231928,-150.0,0.00010626,2]
[351661873,1738696231938,-1000.0,0.00010684,2]
[351661874,1738696231948,-166.66666666,0.00010718,2]
[351661875,1738696231957,-1000.0,0.0001078,2]
[351661876,1738696231966,-800.0,0.00010876,2]
[351661877,1738696231980,-1000.0,0.00010958,2]
[351661878,1738696231990,-150.0,0.00010959,2]
[351661879,1738696231999,-807.55,0.0001111,2]
[351661880,1738696232008,-300.0,0.0001123,2]
[351661881,1738696232017,-1000.0,0.00011232,2]
[351661882,1738696232026,-150.99,0.00011281,2]
[351661883,1738696232035,-468.11,0.00011281,2]
[351661884,1738696232044,-1709.13,0.00011281,2]
[351661885,1738696232053,-532.91,0.00011281,2]
[351661886,1738696232063,-3488.44,0.00011281,2]
[351661887,1738696232073,-1114.58,0.00011281,2]
[351661888,1738696232082,-480.34,0.00011281,2]
[351661889,1738696232091,-639.01,0.00011281,2]
[351661890,1738696232101,-299.99,0.00011281,2]
[351661891,1738696232110,-292.81,0.00011281,2]
[351661892,1738696232120,-999.99,0.00011281,2]
[351661893,1738696232130,-8576.65088494,0.00011281,2]
[351661894,1738696232141,-1423.33911506,0.00011281,2]
[351661895,1738696232150,-4676.66088484,0.00011281,2]
[351661896,1738696232162,-2830.35911516,0.00011281,2]
[351661897,1738696232171,-166.66666666,0.000114,2]
[351661898,1738696232181,-379.97,0.00011436,2]
[351661899,1738696232191,-381.27,0.00011436,2]
[351661900,1738696232200,-369.03,0.00011436,2]
[351661901,1738696232210,-379.28,0.00011436,2]
[351661902,1738696232220,-1029.70537646,0.00011475,2]
[351661903,1738696232230,-343.71884172,0.00011506,2]
[351661904,1738696232242,-656.28115828,0.00011506,2]
[351661905,1738696232251,-893.71884172,0.00011507,2]
[351661906,1738696232263,-1857.28115828,0.00011507,2]
[351661907,1738696232272,-377.47,0.00011592,2]
[351661908,1738696232282,-568.95163749,0.00011653,2]
[351661912,1738696232309,-471.70309633,0.00011653,2]
[351661914,1738696232319,-1123.21872427,0.00011653,2]
[351661915,1738696232331,-431.43955898,0.00011677,2]
[351661916,1738696232340,-366.0,0.000117,2]
[351661917,1738696232350,-746.0,0.000117,2]
[351661918,1738696232359,-231.0,0.000117,2]
[351661919,1738696232371,-150.0,0.00011728,2]
[351661920,1738696232380,-150.0,0.0001173,2]
[351661921,1738696232389,-150.0,0.00011731,2]
[351661922,1738696232398,-150.0,0.00011739,2]
[351661923,1738696232407,-150.0,0.00011743,2]
[351661925,1738696232416,-150.0,0.00011749,2]
[351661927,1738696232426,-150.0,0.00011753,2]
[351661928,1738696232435,-150.0,0.00011756,2]
[351661930,1738696232444,-150.0,0.00011757,2]
[351661932,1738696232454,-1062.00255528,0.0001176,2]